Cogmind - Beta 16 @@@ ROGUE MODE // 2025.12.31 @ 17:40:24 Player: Over-in Result: Destroyed by G-34 Mercenary with Small Laser Performance ------------- Evolutions (1) 500 Regions Visited (2) 400 Robots Destroyed (22) 110 Value Destroyed (685) 685 Prototype IDs (0) 0 Alien Tech Used (0) 0 Bonus (0) 0 TOTAL SCORE: 1695 Bonus ------- None Cogmind --------- Core Integrity 0/400 Matter 28/300 Energy 100/100 System Corruption 0% Temperature Cool (6) Movement Core (2350) Ox46 Location -9/Materials Parts ------- > --- POWER (1) -------- (None) > --- PROPULSION (2) --- (None) > --- UTILITY (4) ------ Cargo Storage Unit Structural Scanner Signal Interpreter > --- WEAPON (2) ------- (None) > --- INVENTORY (30) --- Advanced Treads Advanced Treads Advanced Treads Advanced Treads Wheel Armored Wheel Armored Wheel Armored Wheel Armored Wheel Large Battery (200) Core Shielding Propulsion Shielding Heavy EM Pulse Gun Heavy EM Pulse Gun Heavy EM Pulse Gun Particle Gun Particle Gun Particle Gun Particle Gun Assault Rifle Mini Grenade Launcher Mini Grenade Launcher Peak State ------------ > --- POWER ------------ Ion Engine > --- PROPULSION ------- Advanced Treads Advanced Treads > --- UTILITY ---------- Cargo Storage Unit Structural Scanner Signal Interpreter > --- WEAPON ----------- Heavy EM Pulse Gun Grenade Launcher > --- INVENTORY -------- Wheel Wheel Armored Wheel Armored Wheel Armored Wheel Armored Wheel Large Battery Core Shielding Propulsion Shielding Heavy EM Pulse Gun Heavy EM Pulse Gun Heavy EM Pulse Gun Particle Gun Particle Gun Particle Gun Particle Gun Assault Rifle Mini Grenade Launcher Mini Grenade Launcher Mini Grenade Launcher Mini Grenade Launcher [Rating: 17] Favorites ----------- Power Ion Engine Engine Ion Engine Power Core Light Nuclear Core Propulsion Wheel Treads Advanced Treads Wheel Wheel Flight Unit VTOL Module Utility Cargo Storage Unit Device Structural Scanner Storage Cargo Storage Unit Processor Signal Interpreter Weapon Grenade Launcher Energy Gun EM Pulse Gun Launcher Grenade Launcher Build | -11 -10 -9 ------- Run | Yrd Mat Mat Slots Evolved 2 | . . 2 Power . | . . . Propulsion . | . . . Utility 2 | . . 2 Weapon . | . . . Parts Attached 21 | 6 8 7 Power 2 | 1 1 . Engine 1 | 1 . . Core 1 | . 1 . Reactor . | . . . Propulsion 8 | 2 3 3 Treads 2 | . . 2 Leg . | . . . Wheel 5 | 2 2 1 Hover . | . . . Flight 1 | . 1 . Utility 4 | 1 2 1 Device 1 | . 1 . Storage 2 | 1 1 . Processor 1 | . . 1 Hackware . | . . . Protection . | . . . Artifact . | . . . Weapon 7 | 2 2 3 Energy Gun 4 | 2 1 1 Energy Cannon . | . . . Ballistic Gun . | . . . Ballistic Cannon . | . . . Launcher 3 | . 1 2 Special Weapon . | . . . Impact Weapon . | . . . Slashing Weapon . | . . . Piercing Weapon . | . . . Special Melee Weapon . | . . . Unidentified Prototypes . | . . . Parts Lost 7 | . 1 6 Power 2 | . 1 1 Propulsion 1 | . . 1 Utility . | . . . Weapon 4 | . . 4 Highest Loss Streak 2 | . 1 2 To Critical Strikes 1 | . . 1 Average Backups 13 | 2 8 22 Power . | . . . Propulsion 3 | . . 8 Utility 2 | . 2 3 Weapon 6 | 1 4 11 Tool/Special . | . . . Unused Backups 16 | . 1 15 Power . | . . . Propulsion 3 | . . 3 Utility 4 | . 1 3 Weapon 9 | . . 9 Tool/Special . | . . . Average Slot Usage (%) 77 | . 86 62 Engine 4 | . 4 3 Core 4 | . 7 . Wheel 21 | . 28 11 Device 5 | . 2 10 Storage 12 | . 14 11 Processor 4 | . . 11 Energy Gun 11 | . 16 5 Launcher 10 | . 11 8 Peak Build Rating 17 | 6 13 17 Average Rating 10 | 3 9 12 On Entrance 6 | . 6 13 Avg Prop Armor Cover (%) 10 | . . 10 Naked Turns . | . . . Heaviest Build 152 | 14 151 152 Greatest Support 24 | 20 24 24 Greatest Overweight (x) 47 | . 7 47 Average Overweight (x) 4 | . 3 10 Largest Inventory Capacity 30 | 8 30 30 Average Capacity 25 | 5 23 30 Most Carried 25 | 5 21 25 Average Carried 13 | 2 8 22 Final Capacity 30 | 8 30 30 Final Carried 22 | 1 21 22 Class Distribution -------------------- 78% | Hauler-Mutant 21% | Mutant Dominant Class ---------------- Hauler-Mutant | -10/Materials Hauler-Mutant | -9/Materials Resources | -11 -10 -9 ----------- Run | Yrd Mat Mat Matter Collected 478 | 229 161 88 Remotely . | . . . Salvage Created 553 | . 340 213 Parts 34 | . 21 13 Haulers Intercepted 1 | . 1 . Recyclers Shooed . | . . . Parts Field Recycled . | . . . Retrieved Matter . | . . . Parts Self-Destructed . | . . . Prevented . | . . . Parts Restored . | . . . Kills | -11 -10 -9 ------- Run | Yrd Mat Mat Combat Hostiles Destroyed 15 | . 8 7 Guns 1 | . . 1 AOE 14 | . 8 6 Classes Destroyed 7 | . 5 2 Worker 2 | . 1 1 Tunneler 1 | . 1 . Hauler 1 | . 1 . Watcher 3 | . 3 . Grunt 12 | . 8 4 Brawler 1 | . . 1 Sentry 2 | . . 2 Best Kill Streak 5 | . 5 3 Combat Bots Only 3 | . 2 3 Max Kills in Single Turn 2 | . 2 1 Gunslinging . | . . . Exploded 2 | . 2 1 Melee . | . . . Uniques/NPCs Destroyed . | . . . Combat | -11 -10 -9 -------- Run | Yrd Mat Mat Hostile Shots Fired 109 | . 15 94 Missed 25 | . 5 20 Hits 84 | . 10 74 Projectile 84 | . 10 74 AOE 1 | . . 1 Critical Strikes 1 | . . 1 Damage Taken 1091 | . 199 892 Core 429 | . 29 400 Absorbed by Shields . | . . . Core Remaining (%) 94 | 100 88 . Volleys Fired 30 | . 17 13 Largest 2 | . 2 2 Hottest 75 | . 75 75 Shots Fired 58 | . 35 23 Gun 29 | . 19 10 Cannon . | . . . Launcher 29 | . 16 13 Special . | . . . Kinetic . | . . . Thermal . | . . . Explosive 29 | . 16 13 Electromagnetic 29 | . 19 10 Robot Hit Streak 5 | . 5 5 Robot Miss Streak 2 | . 2 2 Penetration Max . | . . . Secondary Targets . | . . . Shots Hit Robots 21 | . 6 15 Core Hits 45 | . 27 18 Critical Kills . | . . . Critical Parts Destroyed . | . . . Critical Strikes . | . . . Melee Attacks . | . . . Impact . | . . . Slashing . | . . . Piercing . | . . . Sneak Attacks . | . . . Combat Hostiles . | . . . Follow-up Attacks . | . . . Damage Inflicted 1414 | . 782 632 Guns 140 | . 69 71 Cannons . | . . . Explosions 1214 | . 653 561 Melee . | . . . Ramming 60 | . 60 . Kinetic . | . . . Thermal 86 | . 86 . Explosive 1118 | . 557 561 Electromagnetic 150 | . 79 71 Impact . | . . . Slashing . | . . . Piercing . | . . . Highest Corruption 3 | . 3 . Average Corruption 2 | . 2 . Corruption Purged . | . . . Corruption Blocked . | . . . Effects 10 | . 10 . Message Errors 2 | . 2 . Matter Fused 2 | . 2 . Energy Discharges 2 | . 2 . Data Loss (minor) 1 | . 1 . Data Loss (major) 1 | . 1 . Misfires 2 | . 2 . Overload Shots . | . . . Overflow Damage 13 | . 13 . Projectiles . | . . . Explosions . | . . . Melee 13 | . 13 . Knockbacks . | . . . Impact . | . . . Kinetic . | . . . Secondary . | . . . Self-Inflicted Damage 73 | . 65 8 Shots 2 | . 1 1 Rammed 2 | . 2 . Targets Rammed 2 | . 2 . Kicked . | . . . Crushed . | . . . Highest Temperature 60 | . 60 48 Average Temperature 24 | . 24 22 Received Heat Transfer 516 | . 75 441 Siege Activations . | . . . Martial Activations . | . . . Shielding Activations . | . . . Robots Disrupted . | . . . Combat Hostiles . | . . . Robots Corrupted . | . . . Combat Hostiles . | . . . Parts Fried 2 | . 2 . Impact Corruptions 1 | . 1 . Robots Melted . | . . . Combat Hostiles . | . . . Parts Melted . | . . . Heat Transferred . | . . . Parts Sabotaged . | . . . Parts Stolen . | . . . Parts Stripped . | . . . Power Chain Reactions 1 | . 1 . Alert | -11 -10 -9 ------- Run | Yrd Mat Mat Maximum Alert Level 1 | . 1 . Low Security (%) 97 | 100 96 100 Level 1 2 | . 3 . Level 2 . | . . . Level 3 . | . . . Level 4 . | . . . Level 5 . | . . . High Security . | . . . Max Security . | . . . Peak Influence 217 | . 217 151 Initial 39 | . . 39 Average 95 | . 114 81 Influence Increases 603 | . 341 262 Destroy 0b10 Robot/C 300 | . 160 140 Destroy 0b10 Robot/NC 35 | . 30 5 Destroy Leader 78 | . 38 40 Successful Hack 4 | . 4 . Disable Machine 60 | . 45 15 Destroy Structure 126 | . 64 62 Influence Decreases 560 | . 248 312 Entered New Map 54 | . . 54 Time Decay 436 | . 238 198 Lost Part 70 | . 10 60 Squads Dispatched 2 | . . 2 Investigation . | . . . Extermination . | . . . Reinforcement 2 | . . 2 Assault . | . . . Garrison . | . . . Intercept . | . . . Searches Triggered . | . . . Construction Impeded . | . . . Haulers Reinforced . | . . . Active Scanning Responses . | . . . Cargo Convoy Interrupts . | . . . Stealth | -11 -10 -9 --------- Run | Yrd Mat Mat Distress Signals . | . . . Communications Jammed . | . . . Distress Signals . | . . . Times Spotted 21 | . 11 10 Peak Tracking Total 3 | . 3 3 Tactical Retreats . | . . . Traps | -11 -10 -9 ------- Run | Yrd Mat Mat Traps Triggered 4 | . 1 3 Indirectly . | . . . Trap Hack Attempts . | . . . Triggered . | . . . Disarmed . | . . . Reprogrammed . | . . . Reused . | . . . Traps Extracted . | . . . Installed . | . . . Triggered . | . . . Machines | -11 -10 -9 ---------- Run | Yrd Mat Mat Machines Disabled 4 | . 3 1 Max in Single Turn 1 | . 1 1 Machines Repaired . | . . . Machines Dismantled . | . . . Machines Sabotaged . | . . . Overloaded Fab Kills . | . . . Hacking | -11 -10 -9 --------- Run | Yrd Mat Mat Machines Accessed 1 | . 1 . Terminals 1 | . 1 . Fabricators . | . . . Repair Stations . | . . . Recycling Units . | . . . Scanalyzers . | . . . Garrison Access . | . . . Total Hacks 1 | . 1 . Successful 1 | . 1 . Failed . | . . . Catastrophic . | . . . Database Lockouts . | . . . Manual . | . . . Terminals 1 | . 1 . Fabricators . | . . . Repair Stations . | . . . Recycling Units . | . . . Scanalyzers . | . . . Garrison Access . | . . . Terminal Hacks 1 | . 1 . Locate Traps 1 | . 1 . Fabricator Hacks . | . . . Repair Station Hacks . | . . . Recycling Unit Hacks . | . . . Scanalyzer . | . . . Garrison Access Hacks . | . . . Unauthorized Hacks . | . . . Terminals . | . . . Fabricators . | . . . Repair Stations . | . . . Recycling Units . | . . . Scanalyzers . | . . . Garrison Access . | . . . Data Cores Recovered . | . . . Used . | . . . Hacking Detections . | . . . Full Trace Events . | . . . Feedback Events . | . . . Feedback Blocked . | . . . Robot Schematics Acquired . | . . . Robots Built . | . . . Authchips . | . . . Time . | . . . Total Robot Build Rating . | . . . Part Schematics Acquired . | . . . Parts Built . | . . . Authchips . | . . . Time . | . . . Total Part Build Rating . | . . . Part Studies Acquired . | . . . Parts Repaired . | . . . Time . | . . . Parts Recycled . | . . . Recycled Matter . | . . . Retrieved Matter . | . . . Retrieved Components . | . . . Parts Scanalyzed . | . . . Part Schematics Acquired . | . . . Parts Damaged . | . . . Bothacking | -11 -10 -9 ------------ Run | Yrd Mat Mat Used RIF Installer . | . . . Robots Hacked . | . . . Non-combat . | . . . Combat . | . . . Robot Hacks Applied . | . . . Relay Couplers Released . | . . . Fabnet Peak Effective % . | . . . Robots Rewired . | . . . Allies Hacked . | . . . Hacks Repelled . | . . . Allies | -11 -10 -9 -------- Run | Yrd Mat Mat Total Allies . | . . . Largest Group . | . . . Highest-Rated Group . | . . . Highest-Rated Ally . | . . . Total Orders . | . . . Ally Attacks . | . . . Total Damage . | . . . Kills . | . . . Allies Corrupted . | . . . Allies Melted . | . . . Intel | -11 -10 -9 ------- Run | Yrd Mat Mat Active Infowar (turns) 537 | . 128 409 Structural 537 | . 128 409 Robot Analysis Total . | . . . Derelict Logs Recovered . | . . . Drone Launches . | . . . Drone Recoveries . | . . . Exploration | -11 -10 -9 ------------- Run | Yrd Mat Mat Turns Passed 1072 | 55 607 410 Spaces Moved 539 | 64 371 104 Core 39 | 32 . 7 Treads . | . . . Legs . | . . . Wheels 500 | 32 371 97 Hover . | . . . Flight . | . . . Fastest Speed 50 | 50 80 180 Average Speed 169 | 65 137 347 Slowest Speed 2400 | 80 185 2400 Overloaded Moves . | . . . Propulsion Burnouts . | . . . Robots Hopped . | . . . Potential Cave-ins . | . . . Cave-ins Triggered . | . . . Exploration Rate (%) 34 | 3 83 16 Regions Visited 2 Branch Regions . Pre-discovered Areas . | . . . Known Exits Taken . | . . . Unknown Exits Taken 2 | 1 1 . Scrap Searched . | . . . Spaces Dug . | . . . Terrain Destroyed 138 | . 70 68 Melee . | . . . Projectile . | . . . AOE 138 | . 70 68 Terrain Rammed . | . . . Walls Destroyed . | . . . Machines Disabled . | . . . Actions | -11 -10 -9 --------- Run | Yrd Mat Mat Total 651 | 76 433 142 Wait 6 | 1 1 4 Move 537 | 63 370 104 Hop . | . . . Pick Up 43 | 6 28 9 Fast Attach 1 | 1 . . Attach 16 | 5 3 8 Detach 1 | . 1 . Swap 11 | . 7 4 Drop 4 | . 4 . Fire 30 | . 17 13 Melee . | . . . Ram 2 | . 2 . Kick . | . . . Crush . | . . . Escape Stasis . | . . . Rewire . | . . . Trap . | . . . Miscellaneous . | . . . Route ------- -11/Scrapyard -10/Materials (discovered 4 exits: [*Mat x2] / [*Min x2]) -9/Materials (discovered 1 exit: [*Mat]) History --------- Turn | Location | Event 10 | -11/Scrapyard | Discovered new exit (range 16) 56 | -11/Scrapyard | Entered Materials 173 | -10/Materials | Discovered new exit (range 12) 214 | -10/Materials | Discovered new exit (range 6) 323 | -10/Materials | Discovered new exit (range 10) 534 | -10/Materials | Discovered new exit (range 10) 577 | -10/Materials | Build established: Hauler-Mutant 663 | -10/Materials | Entered another Materials area 663 | -9/Materials | Evolved 2 slots: Utility x2 906 | -9/Materials | Discovered new exit (range 10) 982 | -9/Materials | Core integrity fell below 50% 1023 | -9/Materials | Core integrity fell below 20% 1073 | -9/Materials | Destroyed by G-34 Mercenary with Small Laser Last Messages --------------- 00941_ U-05 Engineer builds a Wall. 00942_ U-05 Engineer lays Concrete. 00946_ U-05 Engineer builds a Wall. 00947_ The unstable cave ceiling collapses. 00948_ U-05 Engineer builds a Door. 00949_ U-05 Engineer lays Concrete. 00950_ R-06 Scavenger collects Aluminum Leg. 00950_ U-05 Engineer builds a Wall. 00958_ U-05 Engineer lays Concrete. 00959_ U-05 Engineer builds a Wall. 00963_ U-05 Engineer lays Concrete. 00965_ U-05 Engineer builds a Wall. 00969_ Mni. Grenade Launcher destroyed. 00969_ U-05 Engineer lays Concrete. 00993_ Mni. Grenade Launcher destroyed. 01003_ U-05 Engineer builds a Wall. 01011_ U-05 Engineer lays Concrete. 01013_ U-05 Engineer builds a Wall. 01013_ U-05 Engineer lays Concrete. 01065_ Acquired 13 matter. Map ----- +----------------------------------------------------+ | ### #################?????????????????????????? | | ##############?????????????????????????? | | " # """ """ ##?????????????????????????? | | # """"""""" ##??????????????? ##??????? | | #### # """"" " ##????????????## ###??????? | | ####### # ##?### ##??????? | | ####### # ########### ##??????? | | ?????## / ##### %[ ##??????? | | ?????## # =/ + !% ##??????? | | ?????## ####+############+##### ##??????? | | ????? # ###! + ##??????? | | ????? # ### ### ##???? ##??????? | | ????? # ### ### ##?????????????? | | ????? # ### ######+### ##?????????????? | | ????? + ### # # ##?????????????? | | ????? # ### # "" # ##?????????????? | | ?????## ### # ""S # ##?????????????? | | ????? # ### # "" # ##?????????????? | | ????? # ### # # ##?????????????? | | ????? # ### #""" ###########?????????????? | | ????? # ### #""" ######## ?????????????? | | ????? + ?## #""" ####?????????????????? | | ????? # ### # ####?????????????????? | | ?????## ### #####+#### ###????????????????? | | ?????## ##########????????????????? | | ?????## ### ^ /@ # ????????????????? | | ????? # ? ### ^ u ##% " # ????????????????? | | ????? # ???######## ## " # ????????????????? | | ??????????? # ## g # ????????????????? | | ????????????????? # ## # ????????????????? | | ????????????????? # ## # ????????????? | | ????????????????? # ###+######+#####?????????? | | ????????????????? # ##?????????? | | ????????????????? + < ##?????????? | | ?????????????? T ##?????????? | | ?????????????" ##+#####?????????? | | ?????????????" # ###?????????? | | ?????????????? = # ???????????????? | | ????????????? # ???????????????? | | ?????????????#### # ???????????????? | | ????????????? """ # ???????????????? | | ???????????????? """ # ???????????????? | | ???????????????? """ # ???????????????? | | ???????????????? ??? # ???????????????? | | ???????????????????? ??? # ???????????????? | | ??????????????????????? ??? ##???????????????? | | ??????????????????????? ????? ##???????????????? | | ?????????????????????????????????????????????????? | | ?????????????????????????????????????????????????? | | ?????????????????????????????????????????????????? | +----------------------------------------------------+ Best States ------------- Heat Dissipation 28 Energy Generation 14 Energy Capacity 250 Matter Stores 300 Matter Capacity 300 Sight Range 16 Terrain Scan Density 10 Evasion (%) 50 Recoil Reduction 1 Item Schematics ----------------- None Robot Schematics ------------------ None Fabricated ------------ Nothing Repaired ---------- Nothing Studied --------- None Alien Tech Used ----------------- None Achievements -------------- None Challenges ------------ None Game ------ Seed BlastDisposableDesublimator Manual? 0 Play Time 00:12:11 Cumulative 12.8 hours Start 2025.12.31 @ 17:28:24 End 2025.12.31 @ 17:40:24 Sessions 1 Manual Loads 0 Difficulty Rogue Special Mode None Game No. 20 Rogue 20 Adventurer 0 Explorer 0 Win Type - Total 0 Types 0/0/0/0/0/0/0/0/0/0 Lore% 10 Gallery% 15 Achievement% 11 Wizard Run 0 Options --------- Layout 1 ASCII 0 Keyboard 0 Movement Mouse Keybinds 0 Fullscreen 2 Font 24/Smallcaps Map View 50x35 Zoom Use 0% Tactical HUD 1 Map Filters NONE Filters NONE Steam 1 RUN: 8f722e12-888d-453b-9bfb-60330a16382c